[Event "Early-Titled-Tuesday-Blitz-December-26-2023"]
[Site "Chess.com"]
[Date "2023.12.26"]
[Round "3"]
[White "albi1999"]
[Black "bascheyaro"]
[Result "1-0"]
[WhiteElo "2680"]
[BlackElo "2812"]
[TimeControl "180+1"]
[EndTime "8:28:28 PST"]
[Termination "albi1999 won by resignation"]

1. d4 {[%clk 0:02:58]} 1... d5 {[%clk 0:02:59.9]} 2. Nf3 {[%clk 0:02:56.1]} 2...
Nf6 {[%clk 0:02:59.9]} 3. c4 {[%clk 0:02:54.3]} 3... c6 {[%clk 0:03:00.2]} 4. e3
{[%clk 0:02:46.2]} 4... Bf5 {[%clk 0:02:59.4]} 5. Nc3 {[%clk 0:02:45.6]} 5... e6
{[%clk 0:02:59.5]} 6. Nh4 {[%clk 0:02:45.8]} 6... Be4 {[%clk 0:03:00.1]} 7. f3
{[%clk 0:02:45.7]} 7... Bg6 {[%clk 0:03:00.6]} 8. Bd2 {[%clk 0:02:43.9]} 8...
Nbd7 {[%clk 0:03:00.2]} 9. Qb3 {[%clk 0:02:43.5]} 9... Qb6 {[%clk 0:03:00.3]}
10. Nxg6 {[%clk 0:02:39.2]} 10... hxg6 {[%clk 0:03:00.3]} 11. Be2 {[%clk
0:02:36]} 11... Bd6 {[%clk 0:02:59.4]} 12. f4 {[%clk 0:02:30.6]} 12... g5 {[%clk
0:02:51.5]} 13. c5 {[%clk 0:02:25]} 13... Qxb3 {[%clk 0:02:50.8]} 14. axb3
{[%clk 0:02:25.9]} 14... Bc7 {[%clk 0:02:51.2]} 15. fxg5 {[%clk 0:02:15.5]}
15... Bg3+ {[%clk 0:02:27.8]} 16. Kd1 {[%clk 0:02:05.4]} 16... Ne4 {[%clk
0:02:28.1]} 17. Nxe4 {[%clk 0:01:52.9]} 17... dxe4 {[%clk 0:02:29]} 18. Kc2
{[%clk 0:01:13.3]} 18... Rxh2 {[%clk 0:02:27.6]} 19. Rxh2 {[%clk 0:01:12.6]}
19... Bxh2 {[%clk 0:02:28.5]} 20. Rh1 {[%clk 0:01:12.5]} 20... Bg3 {[%clk
0:02:26.7]} 21. Rh3 {[%clk 0:01:10.9]} 21... Bc7 {[%clk 0:02:14.4]} 22. Rh4
{[%clk 0:01:10.6]} 22... Ke7 {[%clk 0:02:13.8]} 23. Rxe4 {[%clk 0:01:09.6]}
23... Rh8 {[%clk 0:02:13.5]} 24. Rg4 {[%clk 0:01:03.1]} 24... Rh1 {[%clk
0:01:47.5]} 25. b4 {[%clk 0:01:02.5]} 25... a6 {[%clk 0:01:44.7]} 26. e4 {[%clk
0:00:59]} 26... Nf8 {[%clk 0:01:32.7]} 27. Bc3 {[%clk 0:00:54.1]} 27... Ng6
{[%clk 0:01:29.1]} 28. Bf3 {[%clk 0:00:47.7]} 28... Nf4 {[%clk 0:01:10.8]} 29.
d5 {[%clk 0:00:41.8]} 29... exd5 {[%clk 0:00:53.4]} 30. exd5 {[%clk 0:00:41.7]}
30... cxd5 {[%clk 0:00:48.6]} 31. Bxg7 {[%clk 0:00:38.6]} 31... Ke6 {[%clk
0:00:48.5]} 32. Bd4 {[%clk 0:00:28.7]} 32... Kf5 {[%clk 0:00:45.3]} 33. Bc3
{[%clk 0:00:19.7]} 33... Rh2 {[%clk 0:00:40.2]} 34. Rg3 {[%clk 0:00:18.6]} 34...
Be5 {[%clk 0:00:26.6]} 35. Bg4+ {[%clk 0:00:16]} 35... Ke4 {[%clk 0:00:18.2]}
36. Bf3+ {[%clk 0:00:14.8]} 36... Kf5 {[%clk 0:00:18.3]} 37. Bg4+ {[%clk
0:00:15.4]} 37... Ke4 {[%clk 0:00:14.9]} 38. Bd2 {[%clk 0:00:13.1]} 38... d4
{[%clk 0:00:11.3]} 39. Bf3+ {[%clk 0:00:11]} 39... Kf5 {[%clk 0:00:11.8]} 40.
Bxb7 {[%clk 0:00:11.8]} 40... d3+ {[%clk 0:00:12.4]} 41. Kb3 {[%clk 0:00:10.8]}
41... Rh1 {[%clk 0:00:11.9]} 42. Bxf4 {[%clk 0:00:10.8]} 42... Bxf4 {[%clk
0:00:10.9]} 43. Rxd3 {[%clk 0:00:11.2]} 43... Bxg5 {[%clk 0:00:11]} 44. c6
{[%clk 0:00:10.3]} 44... Bf4 {[%clk 0:00:10.5]} 45. Bxa6 {[%clk 0:00:09.5]}
45... Rc1 {[%clk 0:00:09.6]} 46. Rc3 {[%clk 0:00:08.9]} 46... Ra1 {[%clk
0:00:10]} 47. Bc8+ {[%clk 0:00:08.5]} 47... Kf6 {[%clk 0:00:10]} 48. Rf3 {[%clk
0:00:08.1]} 48... Kg5 {[%clk 0:00:09.7]} 49. Bd7 {[%clk 0:00:07.6]} 49... Ra7
{[%clk 0:00:09]} 50. b5 {[%clk 0:00:07.9]} 50... Bc7 {[%clk 0:00:09]} 51. Kc4
{[%clk 0:00:07.4]} 51... f6 {[%clk 0:00:09.1]} 52. Kc5 {[%clk 0:00:07.6]} 52...
Ra5 {[%clk 0:00:08.5]} 53. Ra3 {[%clk 0:00:08.2]} 53... Rxa3 {[%clk 0:00:07.8]}
54. bxa3 {[%clk 0:00:09.1]} 54... Bd8 {[%clk 0:00:08.4]} 55. b6 {[%clk
0:00:09.6]} 55... Be7+ {[%clk 0:00:08.9]} 56. Kb5 {[%clk 0:00:10.2]} 56... Bxa3
{[%clk 0:00:09.8]} 57. c7 {[%clk 0:00:10.2]} 57... Bd6 {[%clk 0:00:10.7]} 58.
c8=Q {[%clk 0:00:11.1]} 58... f5 {[%clk 0:00:11.1]} 59. Qe8 {[%clk 0:00:11.6]}
59... Kf4 {[%clk 0:00:11.1]} 60. Qe6 {[%clk 0:00:12.5]} 60... Ba3 {[%clk
0:00:11]} 61. Qxf5+ {[%clk 0:00:13]} 61... Ke3 {[%clk 0:00:11.9]} 62. Qf3+
{[%clk 0:00:13.2]} 62... Kd4 {[%clk 0:00:12.3]} 63. Qxa3 {[%clk 0:00:13.7]} 1-0

[Event "Early-Titled-Tuesday-Blitz-December-26-2023"]
[Site "Chess.com"]
[Date "2023.12.26"]
[Round "3"]
[White "ftorodent"]
[Black "zverr1"]
[Result "1-0"]
[WhiteElo "2670"]
[BlackElo "2480"]
[TimeControl "180+1"]
[EndTime "8:28:28 PST"]
[Termination "ftorodent won by checkmate"]

1. d4 {[%clk 0:03:00.9]} 1... Nf6 {[%clk 0:02:57.2]} 2. c4 {[%clk 0:03:00.8]}
2... g6 {[%clk 0:02:56.3]} 3. Nf3 {[%clk 0:02:59.7]} 3... Bg7 {[%clk 0:02:53.9]}
4. Nc3 {[%clk 0:02:59.8]} 4... d5 {[%clk 0:02:54]} 5. cxd5 {[%clk 0:02:59.5]}
5... Nxd5 {[%clk 0:02:54.9]} 6. Bg5 {[%clk 0:02:59.3]} 6... Nxc3 {[%clk
0:02:51.7]} 7. bxc3 {[%clk 0:02:58.8]} 7... O-O {[%clk 0:02:51.4]} 8. e3 {[%clk
0:02:58.2]} 8... c5 {[%clk 0:02:51.3]} 9. Qd2 {[%clk 0:02:58.4]} 9... Nc6 {[%clk
0:02:46]} 10. Be2 {[%clk 0:02:57.8]} 10... b6 {[%clk 0:02:40.4]} 11. Rc1 {[%clk
0:02:48.8]} 11... Bb7 {[%clk 0:02:39.5]} 12. O-O {[%clk 0:02:46]} 12... Qd6
{[%clk 0:02:33.3]} 13. Rfd1 {[%clk 0:02:31.1]} 13... Rfd8 {[%clk 0:02:28.6]} 14.
Qb2 {[%clk 0:02:28.9]} 14... Qc7 {[%clk 0:02:15.6]} 15. Qb1 {[%clk 0:02:15.9]}
15... Rac8 {[%clk 0:01:55.5]} 16. Bh4 {[%clk 0:02:13.3]} 16... Na5 {[%clk
0:01:18]} 17. Nd2 {[%clk 0:01:48.6]} 17... h6 {[%clk 0:00:56.6]} 18. Bg4 {[%clk
0:01:46.7]} 18... Rb8 {[%clk 0:00:46.7]} 19. Bg3 {[%clk 0:01:26.5]} 19... e5
{[%clk 0:00:46.8]} 20. Bf3 {[%clk 0:01:26.3]} 20... Rbc8 {[%clk 0:00:41.4]} 21.
Bxb7 {[%clk 0:01:22.5]} 21... Nxb7 {[%clk 0:00:40.4]} 22. Nc4 {[%clk 0:01:21.4]}
22... f6 {[%clk 0:00:29.7]} 23. Qxg6 {[%clk 0:01:19.4]} 23... b5 {[%clk
0:00:24.7]} 24. dxe5 {[%clk 0:01:05.1]} 24... bxc4 {[%clk 0:00:13.8]} 25. exf6
{[%clk 0:01:03.6]} 25... Qf7 {[%clk 0:00:14.2]} 26. Rxd8+ {[%clk 0:00:53.7]}
26... Rxd8 {[%clk 0:00:14.3]} 27. Qxf7+ {[%clk 0:00:52.6]} 27... Kxf7 {[%clk
0:00:15.2]} 28. fxg7 {[%clk 0:00:53.1]} 28... Kxg7 {[%clk 0:00:10.6]} 29. Kf1
{[%clk 0:00:51.1]} 29... Rd2 {[%clk 0:00:09.5]} 30. Rb1 {[%clk 0:00:46.5]} 30...
Nd8 {[%clk 0:00:09.7]} 31. Rb5 {[%clk 0:00:42]} 31... Rxa2 {[%clk 0:00:08.8]}
32. Rxc5 {[%clk 0:00:41.3]} 32... a5 {[%clk 0:00:03.5]} 33. Bc7 {[%clk
0:00:37.4]} 33... Ne6 {[%clk 0:00:03.1]} 34. Rxa5 {[%clk 0:00:37.5]} 34... Rc2
{[%clk 0:00:02.7]} 35. Be5+ {[%clk 0:00:36.4]} 35... Kf7 {[%clk 0:00:03.5]} 36.
h4 {[%clk 0:00:32]} 36... Rc1+ {[%clk 0:00:02.9]} 37. Ke2 {[%clk 0:00:31.7]}
37... Rc2+ {[%clk 0:00:03.2]} 38. Kf3 {[%clk 0:00:32.1]} 38... Ke8 {[%clk
0:00:02.8]} 39. g4 {[%clk 0:00:30.6]} 39... Rc1 {[%clk 0:00:02.3]} 40. Ke4
{[%clk 0:00:29.1]} 40... Rh1 {[%clk 0:00:02]} 41. Bf6 {[%clk 0:00:28.5]} 41...
Kf7 {[%clk 0:00:01.8]} 42. Kf5 {[%clk 0:00:27.5]} 42... Nf8 {[%clk 0:00:01.7]}
43. Ra7+ {[%clk 0:00:27.5]} 43... Kg8 {[%clk 0:00:01.5]} 44. Rg7+ {[%clk
0:00:26.8]} 44... Kh8 {[%clk 0:00:02]} 45. Rc7+ {[%clk 0:00:25.5]} 45... Kg8
{[%clk 0:00:02.9]} 46. Rxc4 {[%clk 0:00:24.5]} 46... Rh3 {[%clk 0:00:02.4]} 47.
g5 {[%clk 0:00:20]} 47... Rf3+ {[%clk 0:00:01.7]} 48. Rf4 {[%clk 0:00:19.5]}
48... Rh3 {[%clk 0:00:01.9]} 49. g6 {[%clk 0:00:19.4]} 49... h5 {[%clk
0:00:01.9]} 50. Kg5 {[%clk 0:00:17.3]} 50... Nh7+ {[%clk 0:00:02]} 51. gxh7+
{[%clk 0:00:15.8]} 51... Kxh7 {[%clk 0:00:02.5]} 52. Kxh5 {[%clk 0:00:14.5]}
52... Rh1 {[%clk 0:00:02.6]} 53. Bg5 {[%clk 0:00:14.4]} 53... Rg1 {[%clk
0:00:02.8]} 54. Rf7+ {[%clk 0:00:14.2]} 54... Kg8 {[%clk 0:00:02.8]} 55. Kg6
{[%clk 0:00:14.2]} 55... Rg2 {[%clk 0:00:03.5]} 56. Rd7 {[%clk 0:00:13.3]} 56...
Rxf2 {[%clk 0:00:03.5]} 57. Rd8+ {[%clk 0:00:13.6]} 57... Rf8 {[%clk 0:00:04.4]}
58. Rxf8+ {[%clk 0:00:14.1]} 58... Kxf8 {[%clk 0:00:05.3]} 59. h5 {[%clk
0:00:14.5]} 59... Kg8 {[%clk 0:00:06.2]} 60. h6 {[%clk 0:00:15.1]} 60... Kh8
{[%clk 0:00:07.1]} 61. Bf6+ {[%clk 0:00:15.3]} 61... Kg8 {[%clk 0:00:08]} 62.
h7+ {[%clk 0:00:15.8]} 62... Kf8 {[%clk 0:00:08.7]} 63. h8=Q# {[%clk 0:00:16.2]}
1-0

[Event "Early-Titled-Tuesday-Blitz-December-26-2023"]
[Site "Chess.com"]
[Date "2023.12.26"]
[Round "3"]
[White "missponyo10"]
[Black "wild3000"]
[Result "0-1"]
[WhiteElo "2224"]
[BlackElo "2422"]
[TimeControl "180+1"]
[EndTime "8:28:30 PST"]
[Termination "wild3000 won by checkmate"]

1. e4 {[%clk 0:03:00.9]} 1... a6 {[%clk 0:02:52]} 2. d3 {[%clk 0:02:59]} 2... b5
{[%clk 0:02:51.9]} 3. Nd2 {[%clk 0:02:57.7]} 3... Bb7 {[%clk 0:02:52.4]} 4. Ngf3
{[%clk 0:02:56.3]} 4... c5 {[%clk 0:02:52.8]} 5. g3 {[%clk 0:02:56.5]} 5... e6
{[%clk 0:02:51.9]} 6. Bg2 {[%clk 0:02:56.3]} 6... d5 {[%clk 0:02:52.5]} 7. exd5
{[%clk 0:02:57.2]} 7... exd5 {[%clk 0:02:52.5]} 8. O-O {[%clk 0:02:57.7]} 8...
Be7 {[%clk 0:02:53]} 9. Re1 {[%clk 0:02:57.4]} 9... Nf6 {[%clk 0:02:52.9]} 10.
Nf1 {[%clk 0:02:57.8]} 10... O-O {[%clk 0:02:53]} 11. Ne3 {[%clk 0:02:55.9]}
11... g6 {[%clk 0:02:49.2]} 12. Nf1 {[%clk 0:02:51.1]} 12... Re8 {[%clk
0:02:48.2]} 13. Bh6 {[%clk 0:02:50.5]} 13... Nc6 {[%clk 0:02:46.7]} 14. h4
{[%clk 0:02:49.9]} 14... Ng4 {[%clk 0:02:44.8]} 15. Bf4 {[%clk 0:02:46.9]} 15...
h5 {[%clk 0:02:40]} 16. N1h2 {[%clk 0:02:46.2]} 16... Nxh2 {[%clk 0:02:16.8]}
17. Nxh2 {[%clk 0:02:47.1]} 17... Qd7 {[%clk 0:02:16.6]} 18. Qf3 {[%clk
0:02:43.3]} 18... Nd4 {[%clk 0:02:11.4]} 19. Qd1 {[%clk 0:02:43]} 19... Bf6
{[%clk 0:02:10.7]} 20. c3 {[%clk 0:02:42.5]} 20... Rxe1+ {[%clk 0:02:09.4]} 21.
Qxe1 {[%clk 0:02:40.3]} 21... Nc2 {[%clk 0:02:10.3]} 22. Qd1 {[%clk 0:02:38.8]}
22... Nxa1 {[%clk 0:02:10.3]} 23. Qxa1 {[%clk 0:02:39.7]} 23... d4 {[%clk
0:02:09.1]} 24. Bxb7 {[%clk 0:02:35.8]} 24... Qxb7 {[%clk 0:02:08.9]} 25. Qe1
{[%clk 0:02:35]} 25... dxc3 {[%clk 0:02:07.5]} 26. bxc3 {[%clk 0:02:35.9]} 26...
Qd7 {[%clk 0:02:07.7]} 27. Qe4 {[%clk 0:02:20.8]} 27... Re8 {[%clk 0:02:06.1]}
28. Qf3 {[%clk 0:02:20.8]} 28... Qe6 {[%clk 0:02:02.9]} 29. Nf1 {[%clk
0:02:20.3]} 29... Bxc3 {[%clk 0:02:01.7]} 30. Ne3 {[%clk 0:02:18.1]} 30... Bd4
{[%clk 0:02:01.3]} 31. Nd5 {[%clk 0:02:14.8]} 31... Qg4 {[%clk 0:01:53.2]} 32.
Qg2 {[%clk 0:02:09.9]} 32... Re1+ {[%clk 0:01:51.2]} 33. Kh2 {[%clk 0:02:09.6]}
33... Re2 {[%clk 0:01:50.1]} 34. Be3 {[%clk 0:02:09.4]} 34... Kg7 {[%clk
0:01:40.4]} 35. Nf4 {[%clk 0:01:54.9]} 35... Rxa2 {[%clk 0:01:30.1]} 36. Qe4
{[%clk 0:01:47.9]} 36... Qf5 {[%clk 0:01:14.3]} 37. Bxd4+ {[%clk 0:01:45]} 37...
cxd4 {[%clk 0:01:15.1]} 38. Qxd4+ {[%clk 0:01:45.9]} 38... Qf6 {[%clk 0:01:14]}
39. Qc5 {[%clk 0:01:41.1]} 39... Rb2 {[%clk 0:01:01]} 40. Kg2 {[%clk 0:01:40.7]}
40... a5 {[%clk 0:00:55.7]} 41. d4 {[%clk 0:01:26.7]} 41... a4 {[%clk 0:00:50]}
42. d5 {[%clk 0:01:25.4]} 42... Rb3 {[%clk 0:00:46.1]} 43. d6 {[%clk 0:01:20.9]}
43... a3 {[%clk 0:00:45.5]} 44. Qd5 {[%clk 0:01:13.3]} 44... a2 {[%clk
0:00:41.5]} 45. d7 {[%clk 0:01:07.8]} 45... a1=Q {[%clk 0:00:33.3]} 46. d8=Q
{[%clk 0:01:06.8]} 46... Qxd8 {[%clk 0:00:26.1]} 47. Qxd8 {[%clk 0:01:07.7]}
47... Qe5 {[%clk 0:00:23.7]} 48. Qd1 {[%clk 0:01:04.2]} 48... Rb2 {[%clk
0:00:22.5]} 49. Qa1 {[%clk 0:01:03.4]} 49... b4 {[%clk 0:00:20.4]} 50. Qc1
{[%clk 0:00:59.9]} 50... Qd4 {[%clk 0:00:19.2]} 51. Qe1 {[%clk 0:00:56.3]} 51...
b3 {[%clk 0:00:18.6]} 52. Nh3 {[%clk 0:00:45.8]} 52... Rc2 {[%clk 0:00:18.1]}
53. Qb1 {[%clk 0:00:38.6]} 53... Qe4+ {[%clk 0:00:15.8]} 54. Kg1 {[%clk
0:00:39.1]} 54... b2 {[%clk 0:00:15.5]} 55. Ng5 {[%clk 0:00:35]} 55... Rc1+
{[%clk 0:00:15.3]} 56. Kh2 {[%clk 0:00:33.7]} 56... Rxb1 {[%clk 0:00:14.4]} 57.
Nxe4 {[%clk 0:00:32.8]} 57... Rc1 {[%clk 0:00:14.5]} 58. Nc3 {[%clk 0:00:32.4]}
58... Rxc3 {[%clk 0:00:14.2]} 59. f4 {[%clk 0:00:31.9]} 59... b1=Q {[%clk
0:00:13.6]} 60. g4 {[%clk 0:00:30.8]} 60... Qb2+ {[%clk 0:00:13]} 61. Kh1 {[%clk
0:00:30.3]} 61... Rc1# {[%clk 0:00:13.9]} 0-1

[Event "Early-Titled-Tuesday-Blitz-December-26-2023"]
[Site "Chess.com"]
[Date "2023.12.26"]
[Round "3"]
[White "Evgeny81"]
[Black "Jospem"]
[Result "0-1"]
[WhiteElo "2761"]
[BlackElo "3071"]
[TimeControl "180+1"]
[EndTime "8:28:31 PST"]
[Termination "Jospem won on time"]

1. d4 {[%clk 0:03:00.9]} 1... Nf6 {[%clk 0:02:59.7]} 2. c4 {[%clk 0:03:00.7]}
2... e6 {[%clk 0:03:00.4]} 3. Nf3 {[%clk 0:03:01.3]} 3... Bb4+ {[%clk
0:03:00.8]} 4. Bd2 {[%clk 0:03:01.9]} 4... c5 {[%clk 0:03:01.5]} 5. Bxb4 {[%clk
0:03:01.3]} 5... cxb4 {[%clk 0:03:02.4]} 6. g3 {[%clk 0:03:01.6]} 6... b6 {[%clk
0:03:02.9]} 7. Bg2 {[%clk 0:03:01.5]} 7... Bb7 {[%clk 0:03:03.5]} 8. O-O {[%clk
0:03:00.8]} 8... a5 {[%clk 0:03:03.8]} 9. Nbd2 {[%clk 0:02:59.3]} 9... O-O
{[%clk 0:03:01.5]} 10. Rc1 {[%clk 0:02:56.8]} 10... d6 {[%clk 0:03:01.8]} 11.
Ne1 {[%clk 0:02:56.6]} 11... Bxg2 {[%clk 0:03:00.9]} 12. Nxg2 {[%clk 0:02:57.5]}
12... Nc6 {[%clk 0:03:00.5]} 13. Nf3 {[%clk 0:02:55.3]} 13... Ne7 {[%clk
0:02:40.5]} 14. Qd3 {[%clk 0:02:50.8]} 14... Rc8 {[%clk 0:02:38.2]} 15. e4
{[%clk 0:02:43]} 15... Nd7 {[%clk 0:02:25.9]} 16. Ne3 {[%clk 0:02:26.3]} 16...
Re8 {[%clk 0:02:26]} 17. Rfd1 {[%clk 0:02:25.9]} 17... h6 {[%clk 0:02:25.7]} 18.
a3 {[%clk 0:02:10.7]} 18... Nc6 {[%clk 0:02:23.9]} 19. Kg2 {[%clk 0:02:02.8]}
19... Qe7 {[%clk 0:02:13.6]} 20. h4 {[%clk 0:01:54.6]} 20... Red8 {[%clk
0:02:10.1]} 21. axb4 {[%clk 0:01:43.5]} 21... Nxb4 {[%clk 0:02:10.1]} 22. Qb1
{[%clk 0:01:41.6]} 22... Nf6 {[%clk 0:02:08.7]} 23. b3 {[%clk 0:01:40]} 23...
Qb7 {[%clk 0:02:08.2]} 24. d5 {[%clk 0:01:38.3]} 24... Re8 {[%clk 0:02:02]} 25.
Nd4 {[%clk 0:01:33.1]} 25... Na6 {[%clk 0:01:49.5]} 26. f3 {[%clk 0:01:14.6]}
26... Nc5 {[%clk 0:01:49.3]} 27. Nc6 {[%clk 0:01:13.2]} 27... Nfd7 {[%clk
0:01:36.1]} 28. Nd4 {[%clk 0:01:10.5]} 28... Qb8 {[%clk 0:01:07.5]} 29. dxe6
{[%clk 0:01:06.6]} 29... fxe6 {[%clk 0:01:07.8]} 30. Nb5 {[%clk 0:01:04]} 30...
Nb7 {[%clk 0:01:08.1]} 31. Qb2 {[%clk 0:01:00.8]} 31... Rf8 {[%clk 0:01:03]} 32.
Qd4 {[%clk 0:00:56.7]} 32... Ndc5 {[%clk 0:01:01]} 33. Rc3 {[%clk 0:00:54.8]}
33... Rcd8 {[%clk 0:00:59]} 34. Ng4 {[%clk 0:00:46.8]} 34... Rd7 {[%clk
0:00:48.2]} 35. Qe3 {[%clk 0:00:44.5]} 35... e5 {[%clk 0:00:33.9]} 36. Qe2
{[%clk 0:00:39]} 36... Rdf7 {[%clk 0:00:34.1]} 37. Rf1 {[%clk 0:00:37.4]} 37...
Ne6 {[%clk 0:00:33.8]} 38. Rd3 {[%clk 0:00:32.3]} 38... Nbc5 {[%clk 0:00:29.1]}
39. Rxd6 {[%clk 0:00:30.5]} 39... Nd4 {[%clk 0:00:29.6]} 40. Rxd4 {[%clk
0:00:23.5]} 40... exd4 {[%clk 0:00:29.8]} 41. Nxd4 {[%clk 0:00:23.8]} 41... Re8
{[%clk 0:00:26.4]} 42. Ne3 {[%clk 0:00:20.3]} 42... Qe5 {[%clk 0:00:25.2]} 43.
Ndc2 {[%clk 0:00:10.2]} 43... Nxb3 {[%clk 0:00:16.1]} 44. Nd5 {[%clk 0:00:10.4]}
44... Nd4 {[%clk 0:00:14.2]} 45. Nxd4 {[%clk 0:00:09.8]} 45... Qxd4 {[%clk
0:00:15.1]} 46. Rd1 {[%clk 0:00:09.7]} 46... Qc5 {[%clk 0:00:15.7]} 47. Rb1
{[%clk 0:00:08.8]} 47... a4 {[%clk 0:00:13]} 48. Rxb6 {[%clk 0:00:07.2]} 48...
Ra8 {[%clk 0:00:11.1]} 49. Rb5 {[%clk 0:00:06.8]} 49... Qd4 {[%clk 0:00:11.3]}
50. Rb2 {[%clk 0:00:06]} 50... a3 {[%clk 0:00:09.8]} 51. Ra2 {[%clk 0:00:06.3]}
51... Rb7 {[%clk 0:00:10.2]} 52. Kh3 {[%clk 0:00:04.1]} 52... Rb2 {[%clk
0:00:10.5]} 53. Rxb2 {[%clk 0:00:03.5]} 53... axb2 {[%clk 0:00:11.4]} 54. Qe1
{[%clk 0:00:02.6]} 54... Rb8 {[%clk 0:00:05.3]} 55. Qb1 {[%clk 0:00:01.2]} 55...
Qxc4 {[%clk 0:00:05.6]} 56. Ne7+ {[%clk 0:00:01]} 56... Kf8 {[%clk 0:00:03.8]}
57. Nf5 {[%clk 0:00:01.9]} 57... g6 {[%clk 0:00:03.3]} 0-1

[Event "Early-Titled-Tuesday-Blitz-December-26-2023"]
[Site "Chess.com"]
[Date "2023.12.26"]
[Round "3"]
[White "MikeSailer"]
[Black "LeoLV10"]
[Result "1-0"]
[WhiteElo "2190"]
[BlackElo "2480"]
[TimeControl "180+1"]
[EndTime "8:28:39 PST"]
[Termination "MikeSailer won by resignation"]

1. d4 {[%clk 0:02:57.5]} 1... Nf6 {[%clk 0:02:59.4]} 2. Nc3 {[%clk 0:02:54.3]}
2... d5 {[%clk 0:02:57.9]} 3. Bf4 {[%clk 0:02:54.2]} 3... e6 {[%clk 0:02:57.2]}
4. e3 {[%clk 0:02:50]} 4... c5 {[%clk 0:02:52]} 5. Nb5 {[%clk 0:02:48.5]} 5...
Na6 {[%clk 0:02:52.1]} 6. a4 {[%clk 0:02:45.9]} 6... Be7 {[%clk 0:02:49.6]} 7.
c3 {[%clk 0:02:45.7]} 7... O-O {[%clk 0:02:49.5]} 8. Bd3 {[%clk 0:02:45.7]} 8...
Bd7 {[%clk 0:02:38.4]} 9. Nf3 {[%clk 0:02:45]} 9... Bc6 {[%clk 0:02:37.3]} 10.
h3 {[%clk 0:02:41.3]} 10... Ne4 {[%clk 0:02:29.1]} 11. Bxe4 {[%clk 0:02:32.6]}
11... dxe4 {[%clk 0:02:30]} 12. Ne5 {[%clk 0:02:31.7]} 12... f6 {[%clk
0:02:22.2]} 13. Nxc6 {[%clk 0:02:31.7]} 13... bxc6 {[%clk 0:02:23.1]} 14. Na3
{[%clk 0:02:28.9]} 14... cxd4 {[%clk 0:02:21.1]} 15. exd4 {[%clk 0:02:19.8]}
15... Qd5 {[%clk 0:01:56.4]} 16. O-O {[%clk 0:02:19.1]} 16... Rfd8 {[%clk
0:01:52]} 17. Qe2 {[%clk 0:02:16.1]} 17... Nb8 {[%clk 0:01:51.2]} 18. Rfe1
{[%clk 0:02:08.4]} 18... f5 {[%clk 0:01:49.8]} 19. Be5 {[%clk 0:02:08.9]} 19...
Nd7 {[%clk 0:01:45.7]} 20. Bc7 {[%clk 0:02:04.6]} 20... Bxa3 {[%clk 0:01:12]}
21. Bxd8 {[%clk 0:02:00.9]} 21... Rxd8 {[%clk 0:00:58.4]} 22. Rxa3 {[%clk
0:01:57.9]} 22... Nf6 {[%clk 0:00:58.6]} 23. Qa6 {[%clk 0:01:38]} 23... Rd7
{[%clk 0:00:53.8]} 24. Qc8+ {[%clk 0:01:37.1]} 24... Kf7 {[%clk 0:00:54.5]} 25.
a5 {[%clk 0:01:18.9]} 25... Nh5 {[%clk 0:00:40.5]} 26. Qb8 {[%clk 0:00:47.1]}
26... g5 {[%clk 0:00:29]} 27. a6 {[%clk 0:00:46.7]} 27... Nf4 {[%clk 0:00:28]}
28. Rb3 {[%clk 0:00:43.6]} 28... e3 {[%clk 0:00:26.7]} 29. f3 {[%clk 0:00:42.9]}
29... c5 {[%clk 0:00:09.7]} 30. Rb7 {[%clk 0:00:43]} 30... cxd4 {[%clk
0:00:10.1]} 31. Qh8 {[%clk 0:00:23.5]} 31... Ke7 {[%clk 0:00:03.3]} 32. Qxh7+
{[%clk 0:00:22.9]} 32... Ke8 {[%clk 0:00:03.7]} 33. Qg8+ {[%clk 0:00:15.8]}
33... Ke7 {[%clk 0:00:04.2]} 34. Qg7+ {[%clk 0:00:15.2]} 34... Ke8 {[%clk
0:00:04.5]} 35. Rb8+ {[%clk 0:00:07.5]} 35... Rd8 {[%clk 0:00:04.4]} 36. Qg8+
{[%clk 0:00:05.7]} 36... Ke7 {[%clk 0:00:04.7]} 37. Qxg5+ {[%clk 0:00:05.9]}
37... Ke8 {[%clk 0:00:05.4]} 38. Qxd8+ {[%clk 0:00:05.7]} 38... Qxd8 {[%clk
0:00:06.3]} 39. Rxd8+ {[%clk 0:00:06.2]} 39... Kxd8 {[%clk 0:00:06.7]} 40. cxd4
{[%clk 0:00:06.9]} 40... Nd5 {[%clk 0:00:06.9]} 41. Kf1 {[%clk 0:00:05.8]} 41...
f4 {[%clk 0:00:07.1]} 42. Ke2 {[%clk 0:00:05.8]} 42... Nb4 {[%clk 0:00:07.6]}
43. Ra1 {[%clk 0:00:04.5]} 43... Nc2 {[%clk 0:00:07.7]} 44. Rc1 {[%clk
0:00:01.9]} 44... Nxd4+ {[%clk 0:00:07.8]} 45. Ke1 {[%clk 0:00:01.7]} 45... Nf5
{[%clk 0:00:07.3]} 46. Rc5 {[%clk 0:00:01.7]} 46... Kd7 {[%clk 0:00:06.5]} 47.
Re5 {[%clk 0:00:02.3]} 47... Kd6 {[%clk 0:00:06.4]} 48. Re4 {[%clk 0:00:03.1]}
48... e5 {[%clk 0:00:05.8]} 49. Ra4 {[%clk 0:00:03.2]} 49... Nd4 {[%clk
0:00:05.7]} 50. Rb4 {[%clk 0:00:02.9]} 50... Nc6 {[%clk 0:00:05.8]} 51. Rb7
{[%clk 0:00:03.1]} 51... e4 {[%clk 0:00:04.2]} 52. fxe4 {[%clk 0:00:03.4]} 52...
Ke5 {[%clk 0:00:04.5]} 53. Ke2 {[%clk 0:00:03.3]} 53... Nd4+ {[%clk 0:00:04.8]}
54. Kd3 {[%clk 0:00:03.9]} 54... e2 {[%clk 0:00:05.1]} 55. Kd2 {[%clk
0:00:04.3]} 55... Kxe4 {[%clk 0:00:04.9]} 56. Re7+ {[%clk 0:00:03.9]} 56... Kd5
{[%clk 0:00:05.5]} 57. Rd7+ {[%clk 0:00:04.5]} 57... Ke4 {[%clk 0:00:05.7]} 58.
Rxd4+ {[%clk 0:00:05]} 58... Kxd4 {[%clk 0:00:06.3]} 59. Kxe2 {[%clk 0:00:05.9]}
59... Ke4 {[%clk 0:00:07.1]} 60. b4 {[%clk 0:00:06]} 60... Kd4 {[%clk
0:00:07.6]} 61. h4 {[%clk 0:00:06.5]} 61... f3+ {[%clk 0:00:07.9]} 62. gxf3
{[%clk 0:00:06.8]} 62... Kc4 {[%clk 0:00:08.8]} 63. h5 {[%clk 0:00:07.6]} 1-0